Cogmind - Beta 14 @@@ ROGUE MODE // 2024.09.20 @ 00:58:09 Player: Awoo-Bot Result: Destroyed by Autobeam Turret with Autobeam Performance ------------- Evolutions (0) 0 Regions Visited (2) 400 Robots Destroyed (23) 115 Value Destroyed (432) 432 Prototype IDs (1) 20 Alien Tech Used (0) 0 Bonus (0) 0 TOTAL SCORE: 967 Bonus ------- None Cogmind --------- Core Integrity 0/250 Matter 300/300 Energy 280/280 System Corruption 1% Temperature Cool (18) Movement Core (650) Ox12 Location -10/Subcaves Parts ------- > --- POWER (1) -------- Heavy Ion Engine > --- PROPULSION (2) --- Light Treads > --- UTILITY (2) ------ Large Storage Unit Medium Armor Plating > --- WEAPON (2) ------- Small Laser Assault Rifle > --- INVENTORY (15) --- Heavy Ion Engine Light Nuclear Core Cooling System Structural Scanner Sensor Array Medium Armor Plating Small Laser Grenade Launcher Datajack Mining Laser Peak State ------------ > --- POWER ------------ Heavy Ion Engine > --- PROPULSION ------- Light Treads Wheel > --- UTILITY ---------- Large Storage Unit Medium Armor Plating > --- WEAPON ----------- Small Laser Assault Rifle > --- INVENTORY -------- Heavy Ion Engine Light Nuclear Core Light Treads Structural Scanner Sensor Array EM Pulse Gun EM Pulse Gun Small Laser Grenade Launcher Datajack Mining Laser [Rating: 11] Favorites ----------- Power Heavy Ion Engine Engine Heavy Ion Engine Propulsion Light Treads Treads Light Treads Wheel Wheel Utility Large Storage Unit Device Seismic Detector Storage Large Storage Unit Protection Medium Armor Plating Weapon Small Laser Energy Gun Small Laser Ballistic Gun Assault Rifle Launcher Grenade Launcher Special Weapon Mining Laser Build | -11 -10 -10 ------- Run | Yrd Mat Sub Slots Evolved . | . . . Power . | . . . Propulsion . | . . . Utility . | . . . Weapon . | . . . Parts Attached 36 | 8 20 8 Power 2 | 1 1 . Engine 2 | 1 1 . Core . | . . . Reactor . | . . . Propulsion 9 | 3 4 2 Treads 2 | . 1 1 Leg . | . . . Wheel 7 | 3 3 1 Hover . | . . . Flight . | . . . Utility 5 | 2 3 . Device 1 | 1 . . Storage 2 | 1 1 . Processor . | . . . Hackware . | . . . Protection 2 | . 2 . Artifact . | . . . Weapon 20 | 2 12 6 Energy Gun 7 | 1 3 3 Energy Cannon . | . . . Ballistic Gun 5 | 1 3 1 Ballistic Cannon . | . . . Launcher 6 | . 4 2 Special Weapon 2 | . 2 . Impact Weapon . | . . . Slashing Weapon . | . . . Piercing Weapon . | . . . Special Melee Weapon . | . . . Unidentified Prototypes 1 | . 1 . Parts Lost 7 | . 2 5 Power . | . . . Propulsion 4 | . 1 3 Utility 1 | . 1 . Weapon 2 | . . 2 Highest Loss Streak 4 | . 2 4 To Critical Strikes . | . . . Average Slot Usage (%) 98 | . 99 94 Engine 14 | . 14 14 Treads 13 | . 13 13 Wheel 13 | . 14 10 Device 8 | . 10 . Storage 14 | . 14 14 Protection 5 | . 3 14 Energy Gun 13 | . 12 18 Ballistic Gun 11 | . 12 4 Launcher 1 | . 1 3 Special Weapon 1 | . 1 . Peak Build Rating 11 | 7 11 11 Average Rating 9 | 5 9 10 On Entrance 6 | . 7 11 Naked Turns . | . . . Heaviest Build 40 | 14 38 40 Greatest Support 26 | 26 20 20 Greatest Overweight (x) 12 | 1 10 12 Average Overweight (x) 1 | . 1 2 Largest Inventory Capacity 15 | 8 15 15 Average Capacity 14 | 7 14 15 Most Carried 13 | 6 13 13 Average Carried 11 | 3 11 12 Final Capacity 15 | 8 15 15 Final Carried 13 | 6 13 10 Class Distribution -------------------- 100% | Mutant Dominant Class ---------------- Mutant | -10/Materials Mutant | -10/Subcaves Resources | -11 -10 -10 ----------- Run | Yrd Mat Sub Matter Collected 634 | 271 237 126 Remotely . | . . . Salvage Created 415 | 27 302 86 Parts 44 | 4 33 7 Haulers Intercepted 1 | . 1 . Recyclers Shooed 1 | . 1 . Parts Field Recycled . | . . . Retrieved Matter . | . . . Parts Self-Destructed 8 | . . 8 Prevented . | . . . Kills | -11 -10 -10 ------- Run | Yrd Mat Sub Combat Hostiles Destroyed 17 | . 12 5 Melee 1 | . 1 . Guns 4 | . 2 2 AOE 12 | . 9 3 Classes Destroyed 8 | 1 6 1 Worker 2 | . 2 . Builder 1 | . 1 . Tunneler 1 | 1 . . Hauler 1 | . 1 . Watcher 1 | . 1 . Swarmer 9 | . 6 3 Grunt 6 | . 6 . Subdweller 2 | . . 2 Best Kill Streak 4 | 1 4 3 Combat Bots Only 3 | . 3 3 Max Kills in Single Turn 3 | 1 3 2 Gunslinging . | . . . Exploded 3 | . 3 2 Melee 1 | . 1 . Uniques/NPCs Destroyed . | . . . Combat | -11 -10 -10 -------- Run | Yrd Mat Sub Hostile Shots Fired 123 | . 48 75 Missed 44 | . 17 27 Damage Taken 1121 | . 411 710 Core 255 | . 97 158 Absorbed by Shields . | . . . Core Remaining (%) 100 | 100 . . Volleys Fired 63 | 3 44 16 Largest 2 | 2 2 2 Hottest 100 | 60 100 80 Shots Fired 87 | 6 59 22 Gun 59 | 6 35 18 Cannon . | . . . Launcher 18 | . 14 4 Special 10 | . 10 . Kinetic 26 | 3 20 3 Thermal 30 | 3 25 2 Explosive 18 | . 14 4 Electromagnetic 13 | . . 13 Robot Hit Streak 12 | 3 5 12 Robot Miss Streak 3 | 1 3 1 Penetration Max . | . . . Secondary Targets 1 | . 1 . Max Gunslinging Chain 1 | . 1 . Shots Hit Robots 47 | 4 24 19 Core Hits 38 | 1 28 9 Critical Kills . | . . . Critical Parts Destroyed . | . . . Critical Strikes . | . . . Melee Attacks . | . . . Impact . | . . . Slashing . | . . . Piercing . | . . . Sneak Attacks . | . . . Combat Hostiles . | . . . Follow-up Attacks . | . . . Damage Inflicted 1502 | 48 1008 446 Guns 488 | 48 256 184 Cannons . | . . . Explosions 1011 | . 749 262 Melee . | . . . Ramming 3 | . 3 . Kinetic 203 | 26 136 41 Thermal 153 | 22 120 11 Explosive 1011 | . 749 262 Electromagnetic 132 | . . 132 Impact . | . . . Slashing . | . . . Piercing . | . . . Highest Corruption 1 | . 1 1 Average Corruption 1 | . 1 1 Corruption Purged . | . . . Corruption Blocked . | . . . Effects 9 | . 6 3 Message Errors 4 | . 3 1 Matter Fused 3 | . 1 2 Heat Flow Errors 2 | . 2 . Overload Shots . | . . . Overflow Damage 2 | . 2 . Projectiles . | . . . Explosions 2 | . 2 . Melee . | . . . Knockbacks . | . . . Impact . | . . . Kinetic . | . . . Secondary . | . . . Self-Inflicted Damage 89 | . 34 55 Shots 4 | . 2 2 Rammed 3 | . 3 . Targets Rammed 4 | . 4 . Kicked . | . . . Crushed 1 | . 1 . Highest Temperature 227 | . 227 . Average Temperature 41 | . 41 . Received Heat Transfer 288 | . 186 102 Siege Activations . | . . . Robots Corrupted . | . . . Combat Hostiles . | . . . Parts Fried . | . . . Impact Corruptions . | . . . Robots Melted . | . . . Combat Hostiles . | . . . Parts Melted . | . . . Heat Transferred 350 | 50 275 25 Parts Sabotaged . | . . . Parts Stolen . | . . . Parts Stripped . | . . . Power Chain Reactions . | . . . Alert | -11 -10 -10 ------- Run | Yrd Mat Sub Peak Influence 197 | 5 197 . Initial 3 | . 3 . Average 88 | 2 92 . Maximum Alert Level . | . . . Low Security (%) 100 | 100 100 . Level 1 . | . . . Level 2 . | . . . Level 3 . | . . . Level 4 . | . . . Level 5 . | . . . High Security . | . . . Max Security . | . . . Squads Dispatched . | . . . Investigation . | . . . Extermination . | . . . Reinforcement . | . . . Assault . | . . . Garrison . | . . . Intercept . | . . . Searches Triggered . | . . . Construction Impeded . | . . . Haulers Reinforced . | . . . Active Scanning Responses . | . . . Cargo Convoy Interrupts . | . . . Stealth | -11 -10 -10 --------- Run | Yrd Mat Sub Distress Signals 1 | . 1 . Communications Jammed . | . . . Distress Signals . | . . . Times Spotted 33 | . 21 12 Peak Tracking Total 6 | . 3 6 Tactical Retreats 2 | . 1 1 Traps | -11 -10 -10 ------- Run | Yrd Mat Sub Traps Triggered 1 | . 1 . Indirectly . | . . . Trap Hack Attempts . | . . . Triggered . | . . . Disarmed . | . . . Reprogrammed . | . . . Reused . | . . . Traps Extracted . | . . . Installed . | . . . Triggered 2 | . . 2 Machines | -11 -10 -10 ---------- Run | Yrd Mat Sub Machines Disabled . | . . . Max in Single Turn . | . . . Machines Repaired . | . . . Machines Dismantled . | . . . Machines Sabotaged . | . . . Overloaded Fab Kills . | . . . Hacking | -11 -10 -10 --------- Run | Yrd Mat Sub Machines Accessed 7 | . 7 . Terminals 6 | . 6 . Fabricators . | . . . Repair Stations . | . . . Recycling Units 1 | . 1 . Scanalyzers . | . . . Garrison Access . | . . . Total Hacks 22 | . 22 . Successful 12 | . 12 . Failed 10 | . 10 . Catastrophic 1 | . 1 . Database Lockouts . | . . . Manual 19 | . 19 . Terminals 19 | . 19 . Fabricators . | . . . Repair Stations . | . . . Recycling Units 3 | . 3 . Scanalyzers . | . . . Garrison Access . | . . . Terminal Hacks 1 | . 1 . Terminal Index 1 | . 1 . Fabricator Hacks . | . . . Repair Station Hacks . | . . . Recycling Unit Hacks 3 | . 3 . Process 1 | . 1 . Report Inventory 1 | . 1 . Retrieve Matter 1 | . 1 . Scanalyzer . | . . . Garrison Access Hacks . | . . . Unauthorized Hacks 8 | . 8 . Terminals 8 | . 8 . Assimilate 2 | . 2 . Botnet 5 | . 5 . Operators 1 | . 1 . Fabricators . | . . . Repair Stations . | . . . Recycling Units . | . . . Scanalyzers . | . . . Garrison Access . | . . . Data Cores Recovered . | . . . Used . | . . . Hacking Detections 6 | . 6 . Full Trace Events . | . . . Feedback Events . | . . . Feedback Blocked . | . . . Robot Schematics Acquired . | . . . Robots Built . | . . . Authchips . | . . . Time . | . . . Total Robot Build Rating . | . . . Part Schematics Acquired . | . . . Parts Built . | . . . Authchips . | . . . Time . | . . . Total Part Build Rating . | . . . Parts Repaired . | . . . Time . | . . . Parts Recycled . | . . . Recycled Matter 236 | . 236 . Retrieved Matter 268 | . 268 . Retrieved Components . | . . . Parts Scanalyzed . | . . . Part Schematics Acquired . | . . . Parts Damaged . | . . . Bothacking | -11 -10 -10 ------------ Run | Yrd Mat Sub Used RIF Installer . | . . . Robots Hacked . | . . . Non-combat . | . . . Combat . | . . . Robot Hacks Applied . | . . . Relay Couplers Released . | . . . Fabnet Peak Effective % . | . . . Robots Rewired . | . . . Allies Hacked . | . . . Hacks Repelled . | . . . Allies | -11 -10 -10 -------- Run | Yrd Mat Sub Total Allies 1 | . 1 . Largest Group 1 | . 1 . Highest-Rated Group 10 | . 10 . Highest-Rated Ally 10 | . 10 . Total Orders 1 | . 1 . STAY 1 | . 1 . Ally Attacks . | . . . Total Damage . | . . . Kills . | . . . Allies Corrupted . | . . . Allies Melted . | . . . Intel | -11 -10 -10 ------- Run | Yrd Mat Sub Robot Analysis Total . | . . . Derelict Logs Recovered 2 | . . 2 Drone Launches . | . . . Drone Recoveries . | . . . Exploration | -11 -10 -10 ------------- Run | Yrd Mat Sub Turns Passed 1950 | 70 1571 309 Spaces Moved 1289 | 51 1056 182 Core 7 | 3 2 2 Treads 48 | . 30 18 Legs . | . . . Wheels 1234 | 48 1024 162 Hover . | . . . Flight . | . . . Fastest Speed 50 | 50 80 125 Average Speed 121 | 84 119 142 Slowest Speed 650 | 100 550 650 Overloaded Moves . | . . . Propulsion Burnouts . | . . . Robots Hopped . | . . . Cave-ins Triggered . | . . . Exploration Rate (%) 39 | 5 100 14 Regions Visited 2 Branch Regions 1 Pre-discovered Areas 2 | . . 2 Known Exits Taken . | . . . Unknown Exits Taken 2 | 1 1 . Scrap Searched . | . . . Spaces Dug 9 | . 9 . Terrain Destroyed 106 | . 90 16 Melee . | . . . Projectile 10 | . 10 . AOE 96 | . 80 16 Terrain Rammed . | . . . Walls Destroyed . | . . . Machines Disabled . | . . . Actions | -11 -10 -10 --------- Run | Yrd Mat Sub Total 1556 | 67 1276 213 Wait 138 | . 133 5 Move 1287 | 50 1055 182 Hop . | . . . Pick Up 20 | 6 13 1 Fast Attach 10 | 7 2 1 Attach 5 | . 2 3 Detach . | . . . Swap 21 | 1 16 4 Drop 8 | . 7 1 Fire 63 | 3 44 16 Melee . | . . . Ram . | . . . Kick . | . . . Crush 4 | . 4 . Escape Stasis . | . . . Rewire . | . . . Trap . | . . . Miscellaneous . | . . . Route ------- -11/Scrapyard -10/Materials (discovered 6 exits: [*Mat x3] / [*Min x2] / [*Sub]) -10/Subcaves (discovered 1 exit: [*Rec]) History --------- Turn | Location | Event 9 | -11/Scrapyard | Discovered new exit (range 16) 71 | -11/Scrapyard | Entered Materials 302 | -10/Materials | Build established: Mutant 420 | -10/Materials | Discovered new exit (range 7) 575 | -10/Materials | Discovered new exit (range 13) 1071 | -10/Materials | Discovered new exit (range 16) 1302 | -10/Materials | Discovered new exit (range 9) 1361 | -10/Materials | Discovered new exit (range 13) 1630 | -10/Materials | Discovered new exit (range 10) 1642 | -10/Materials | Entered Subcaves 1660 | -10/Subcaves | Learned location of Zion (-6) 1660 | -10/Subcaves | Met a Zionite searching for "candidates" 1674 | -10/Subcaves | Core integrity fell below 50% 1724 | -10/Subcaves | Shifting Twisted Machinery released Flamer 1724 | -10/Subcaves | Shifting Twisted Machinery released Flamer 1738 | -10/Subcaves | Learned Materials emergency access door positions 1740 | -10/Subcaves | Learned location of Recycling (-8) 1867 | -10/Subcaves | Core integrity fell below 20% 1909 | -10/Subcaves | Lost 4 parts (2n2w) 1916 | -10/Subcaves | Shifting Twisted Machinery released Sub. Laser 1925 | -10/Subcaves | Discovered new exit (range 15) 1951 | -10/Subcaves | Destroyed by Autobeam Turret with Autobeam Last Messages --------------- 01893_ Acquired 8 matter. 01897_ System corrupted: Matter fused (-8). 01909_ Subatomizers dissect the Disposable Heat Sink. Sub. Laser falls loose from the Twisted Machinery. 01920_ Subatomizers dissect the Disposable Heat Sink, destroying it. 01922_ Acquired 8 matter. 01925_ EXIT=FOUND 01927_ Acquired Wheel. 01928_ Acquired 8 matter. 01932_ S-10 Pest destroyed. 01932_ Destroyed Flight Unit. 01934_ Subatomizers dissect the Sub. Monowheel. 01938_ Flight Unit fries itself beyond repair. 01939_ S-10 Pest destroyed. 01940_ Flight Unit fries itself beyond repair. 01942_ Dropped Corrupted Sub. Machine Gun. 01943_ Acquired 7 matter. 01947_ Lgt. Ion Engine fries itself beyond repair. 01947_ Acquired 21 matter. 01949_ Wheel destroyed. Map ----- +----------------------------------------------------+ | ????## ######???????????# ### #??? | | ?????####????????????????## #?# "##??? | | ??????????????????????????# #### ""#???? | | ?????????????????????????## #?# "" ""? | | ?????????????????????????# ### """ ? | | ?????????????????????????## "" " " # | | ??????????????????????????# ## "" # | | ??????????????????????????## ## ##? "" #? | | ???????????????????????????## #####?##?? " ?? | | ????????????????????????????## #???###### ""??? | | ????????????????????????????## ##### "## ""#???? | | ????????????????????????????# ## *!&& #???? | | ????????????????????????????##" !%& & #???? | | ?????????????????????????????#" ## #[# ! ##???? | | ??????????????????????????#### # ##### ##????? | | ??????????????????????????# ## ##??#"" #????? | | ?????????????????????????##"" ## #??# " #????? | | ???????????????"#????###?#"" ## ##??# "" #????? | | ??????????????? ???#""##" # "???## "##????? | | ???????????????"" ??#"" ## ["###" "#???# #?????? | | ?????????????????#" ## "" #&"""##""##??? #?????? | | ?????????????????## " """"""" ???## ""?????? | | ????????????????"#" s "& " """ ????##" ?????? | | ???????????????"""" ""%% [""" "#????###?????? | | ?????????????? " " " ="" ###?????????????? | | ???????????????# # ## @ ##???????????????? | | ?????????????????##??# #??????????????? | | ?????????????????????# ## """????????????? | | ?????????????????????# ? """????????????? | | ?????????????????????## ? ## "#?????????????? | | ??????????????????????## ?####?###?????????????? | | ??????????????????????? ??????????????????????? | | ??????????????????????? ?????????????????????? | | ??????????????????????? ?????????????????????? | | ?????????????????????? t t ?????????????????????? | | ?????????????????????? " " ?????????????????????? | | ??????????????????????""" """????????????????????? | | ??????????????????????###<###????????????????????? | | ?????????????????????????#???????????????????????? | | ?????????????????????????????????????????????????? | | ?????????????????????????????????????????????????? | | ?????????????????????????????????????????????????? | | ?????????????????????????????????????????????????? | | ?????????????????????????????????????????????????? | | ?????????????????????????????????????????????????? | | ?????????????????????????????????????????????????? | | ?????????????????????????????????????????????????? | | ?????????????????????????????????????????????????? | | ?????????????????????????????????????????????????? | | ?????????????????????????????????????????????????? | +----------------------------------------------------+ Best States ------------- Heat Dissipation 25 Energy Generation 14 Energy Capacity 280 Matter Stores 300 Matter Capacity 300 Sight Range 16 Terrain Scan Density 10 Armor Coverage 225 Core Shielding 20 Evasion (%) 44 Recoil Reduction 1 Item Schematics ----------------- None Robot Schematics ------------------ None Fabricated ------------ Nothing Alien Tech Used ----------------- None Achievements -------------- None Challenges ------------ None Game ------ Seed ArmoredSigixArchive Manual? 0 Play Time 00:26:27 Cumulative 72.6 hours Start 2024.09.20 @ 00:01:52 End 2024.09.20 @ 00:58:09 Sessions 1 Manual Loads 0 Difficulty Rogue Special Mode None Game No. 119 Rogue 91 Adventurer 28 Explorer 0 Win Type - Total 0 Types 0/0/0/0/0/0/0/0/0 Lore% 15 Gallery% 29 Achievement% 31 Wizard Run 0 Options --------- Layout 0 ASCII 0 Keyboard 0 Movement Mouse Keybinds 0 Fullscreen 1 Font 28/Terminus Map View 84x54 Zoom Use 0% Tactical HUD 1 Map Filters NONE Filters NONE Steam 1 RUN: 4cfabd9f-3ad5-4a55-8f32-7b2e40eb26eb